bitfinex/quotes_SOLUSD_20241222
["timestamp","ask_amount","ask_price","bid_price","bid_amount"]
[1734873579485,20.0,185.86,185.82,4.41e-05]
[1734873579668,1.00886884,185.89,185.82,4.41e-05]
[1734873580664,1.00567569,185.9,185.82,135.7000441]
[1734873580862,15.01370526,185.92,185.82,135.7000441]
[1734873580863,1.00871401,185.91,185.82,135.7000441]
[1734873581793,20.0,185.89,185.82,135.7000441]
[1734873583593,1.00879436,185.88,185.82,135.7000441]
[1734873584098,1.00879436,185.88,185.82,4.41e-05]
[1734873584802,20.0,185.87,185.82,4.41e-05]
[1734873584977,1.00901393,185.86,185.82,4.41e-05]
[1734873585899,21.00901393,185.86,185.82,4.41e-05]
[1734873586899,20.0,185.85,185.82,4.41e-05]
[1734873587089,1.00909652,185.84,185.82,4.41e-05]
[1734873587409,20.0,185.83,185.82,4.41e-05]
[1734873587976,21.00917932,185.83,185.82,4.41e-05]
[1734873589308,20.0,185.83,185.82,4.41e-05]
[1734873590192,43.776884,185.83,185.82,4.41e-05]
[1734873590703,44.78627187,185.83,185.82,4.41e-05]
[1734873591210,53.07657713,185.83,185.82,4.41e-05]
[1734873592199,24.78627187,185.83,185.82,4.41e-05]
[1734873596482,7.73562174,185.84,185.82,4.41e-05]
[1734873597480,1.00921531,185.83,185.82,4.41e-05]
[1734873598106,7.73436424,185.87,185.82,4.41e-05]
[1734873599605,21.00916424,185.87,185.82,4.41e-05]
[1734873599785,1.00887463,185.89,185.82,4.41e-05]
[1734873601099,20.0,185.87,185.82,4.41e-05]
[1734873601311,1.00892919,185.86,185.82,4.41e-05]
[1734873601611,20.0,185.85,185.82,4.41e-05]
[1734873601778,1.00906654,185.84,185.82,4.41e-05]
[1734873601978,21.00905439,185.87,185.82,4.41e-05]
[1734873602181,20.0,185.88,185.82,4.41e-05]
[1734873602381,8.29030526,185.9,185.82,1.6455441]
[1734873602809,1.00867985,185.89,185.82,137.3455441]
[1734873603606,20.0,185.88,185.82,137.3455441]
[1734873603812,1.00890725,185.87,185.82,137.3455441]
[1734873604021,1.00890725,185.87,185.82,1.6455441]
[1734873604716,21.00890725,185.87,185.82,1.6455441]
[1734873605019,20.0,185.87,185.82,1.6455441]
[1734873605320,21.00887192,185.88,185.82,1.6455441]
[1734873605631,20.0,185.88,185.82,1.6455441]
[1734873607614,1.00882732,185.87,185.82,1.6455441]
[1734873607806,23.776884,185.85,185.82,4.41e-05]
[1734873608122,43.776884,185.83,185.82,4.41e-05]
[1734873608890,20.0,185.83,185.82,4.41e-05]
[1734873610890,1.00905753,185.86,185.82,4.41e-05]
[1734873611094,8.29030526,185.88,185.82,4.41e-05]
[1734873611291,1.00883576,185.87,185.82,4.41e-05]
[1734873611705,1.00893436,185.88,185.82,4.41e-05]
[1734873612734,20.0,185.87,185.82,4.41e-05]
[1734873616099,20.0,185.88,185.82,6.1549441]
[1734873618398,1.00881083,185.87,185.82,6.1549441]
[1734873618601,21.00881083,185.87,185.82,6.1549441]
[1734873620199,21.00881083,185.87,185.82,4.41e-05]
[1734873621729,20.0,185.85,185.82,4.41e-05]
[1734873621900,1.0090789,185.84,185.82,4.41e-05]
[1734873622435,23.776884,185.83,185.82,4.41e-05]
[1734873622675,30.503384,185.83,185.82,4.41e-05]
[1734873622821,33.10063692,185.83,185.82,4.41e-05]
[1734873623027,33.95250004,185.83,185.82,4.41e-05]
[1734873623843,1.86141604,185.83,185.82,4.41e-05]
[1734873624020,1.00955292,185.83,185.82,4.41e-05]
[1734873624343,1.00955292,185.83,185.77,8.044]
[1734873624344,3.66332338,185.83,185.77,8.044]
[1734873624647,3.66332338,185.83,185.77,143.744]
[1734873625012,3.66332338,185.83,185.78,23.776884]
[1734873625630,9.32245292,185.88,185.78,135.7]
[1734873626022,8.31367663,185.88,185.78,135.7]
[1734873626315,8.31367663,185.88,185.79,23.776884]
[1734873626519,1.00880412,185.9,185.79,23.776884]
[1734873626733,20.0,185.89,185.79,23.776884]
[1734873627241,1.00876587,185.88,185.78,135.7]
[1734873627839,1.00883395,185.88,185.78,135.7]
[1734873629240,20.0,185.87,185.77,143.744]
[1734873629440,1.00904528,185.86,185.77,143.744]
[1734873630559,20.0,185.87,185.77,143.744]
[1734873630735,1.00882985,185.86,185.77,143.744]
[1734873631736,1.00902705,185.87,185.77,143.744]
[1734873632837,1.00882987,185.88,185.78,23.776884]
[1734873633139,1.00882987,185.88,185.77,143.744]
[1734873633719,21.00882987,185.88,185.77,143.744]
[1734873634854,20.0,185.88,185.78,23.776884]
[1734873635027,20.0,185.88,185.78,159.476884]
[1734873637349,1.00874661,185.91,185.79,0.12549]
[1734873637537,9.32228051,185.93,185.82,23.776884]
[1734873638564,1.00860388,185.93,185.82,159.476884]
[1734873638866,1.00857614,185.94,185.82,159.476884]
[1734873639370,20.0,185.92,185.82,135.7]
[1734873639542,1.00876257,185.91,185.82,135.7]
[1734873639729,21.00876257,185.91,185.82,135.7]
[1734873640626,20.0,185.91,185.82,135.7]
[1734873641021,8.31367663,185.94,185.83,23.776884]
[1734873641243,8.31367663,185.94,185.85,159.476884]
[1734873641428,9.32224124,185.96,185.85,159.476884]
[1734873642040,8.31367663,185.96,185.85,159.476884]
[1734873642236,8.31367663,185.96,185.85,135.7]
[1734873642439,10.90981932,185.97,185.85,135.7]
[1734873642639,8.31367663,185.97,185.86,23.902374]
[1734873643044,8.31367663,185.98,185.87,13.4502]
[1734873643855,8.31367663,185.98,185.9,155.7]
[1734873644033,8.31367663,186.0,185.9,155.7]
[1734873644433,8.31367663,186.0,185.91,7.9535]
[1734873644637,8.31367663,186.01,185.91,143.6535]
[1734873645758,8.31367663,186.02,185.91,143.6535]
[1734873645954,8.31367663,186.02,185.94,20.0]
[1734873646252,8.31367663,186.02,185.94,155.7]
[1734873647155,8.31367663,186.02,185.98,20.0]
[1734873647453,8.31367663,186.02,185.99,137.2899]
[1734873647643,9.32141247,186.06,185.99,1.5899]
[1734873648240,8.31367663,186.06,185.99,1.5899]
[1734873648437,17.63520078,186.08,185.99,1.5899]
[1734873648438,1.00784751,186.08,185.99,1.5899]
[1734873649759,20.0,186.07,185.99,1.5899]
[1734873650063,21.00779514,186.07,185.99,1.5899]
[1734873650244,20.0,186.07,185.99,1.5899]
[1734873651362,20.0,186.07,185.99,137.2899]
[1734873652647,43.776884,186.06,185.99,137.2899]
[1734873652849,1.0077973,186.05,185.99,135.7]
[1734873653241,21.0077973,186.05,185.94,137.342]
[1734873655643,23.776884,186.04,185.94,137.342]
[1734873655850,1.00804512,186.03,185.94,137.342]
[1734873657469,1.00804512,186.03,185.91,142.0636]
[1734873657673,20.0,185.99,185.91,135.7]
[1734873657966,1.00830284,185.98,185.91,135.7]
[1734873658368,20.0,186.01,185.91,135.7]
[1734873658569,23.776884,185.99,185.91,135.7]
[1734873659848,1.00821582,186.0,185.91,135.7]
[1734873660213,20.0,186.01,185.91,135.7]
[1734873660749,1.00810099,186.0,185.91,135.7]
[1734873661465,23.776884,185.99,185.91,135.7]
[1734873661665,1.00828317,185.98,185.91,135.7]
[1734873662065,1.00828317,185.98,185.9,137.342]
[1734873662468,23.776884,185.99,185.9,137.342]
[1734873662971,20.0,185.96,185.87,135.7]
[1734873663272,20.0,185.94,185.87,135.7]
[1734873663653,43.776884,185.96,185.87,135.7]
[1734873663854,1.00847826,185.95,185.87,135.7]
[1734873664576,20.0,185.94,185.87,135.7]
[1734873664972,20.0,185.94,185.85,137.244]
[1734873665184,21.00845408,185.93,185.85,135.7]
[1734873665474,21.00845408,185.93,185.83,141.8904]
[1734873665475,20.0,185.92,185.83,141.8904]
[1734873665653,1.00866447,185.91,185.83,141.8904]
[1734873665854,1.00865614,185.91,185.83,141.8904]
[1734873666180,20.0,185.92,185.83,141.8904]
[1734873667256,1.00859948,185.95,185.83,141.8904]
[1734873669773,1.00850897,185.96,185.84,23.902374]
[1734873669985,9.81947663,185.97,185.84,23.902374]
[1734873670158,9.81947663,185.97,185.87,20.0]
[1734873670360,8.31367663,185.97,185.87,155.7]
[1734873670563,8.31367663,185.97,185.88,137.244]
[1734873670879,8.31367663,185.97,185.9,23.902374]
[1734873671091,8.31367663,185.97,185.91,6.1904]
[1734873671279,8.31367663,185.97,185.91,141.8904]
[1734873673661,8.31367663,185.97,185.92,23.902374]
[1734873674165,8.31367663,185.97,185.91,135.7]
[1734873674357,9.32190646,185.97,185.88,137.244]
[1734873674560,9.32190646,185.97,185.88,135.7]
[1734873678287,30.160684,185.96,185.88,135.7]
[1734873678489,1.00855094,185.95,185.88,135.7]
[1734873678687,23.776884,185.94,185.84,135.7]
[1734873678873,1.00860884,185.93,185.84,135.7]
[1734873679681,7.39225908,185.96,185.84,135.7]
[1734873680204,6.3838,185.96,185.84,135.7]
[1734873680388,1.0084169,185.95,185.84,135.7]
[1734873680695,7.39229636,185.96,185.84,135.7]
[1734873680998,6.3838,185.96,185.84,135.7]
[1734873683299,6.3838,185.96,185.85,13.4517]
[1734873685705,8.31367663,185.97,185.87,13.4502]
[1734873686597,1.5058,185.98,185.87,13.4502]
[1734873687281,1.6533,186.03,185.92,155.7]
[1734873687485,1.6533,186.03,185.93,155.7]
[1734873687981,1.00797442,186.02,185.93,155.7]
[1734873688405,1.00797442,186.02,185.93,135.7]
[1734873689104,21.00797442,186.02,185.93,135.7]
[1734873689304,23.776884,186.01,185.93,135.7]
[1734873691702,23.776884,185.99,185.93,135.7]
[1734873692096,23.776884,185.99,185.89,150.8129]
[1734873692390,23.776884,186.0,185.89,150.8129]
[1734873692811,20.0,186.02,185.92,20.0]
[1734873692987,23.776884,186.01,185.92,20.0]
[1734873693406,1.6533,186.03,185.92,20.0]
[1734873693796,1.6533,186.03,185.93,13.4459]
[1734873695016,1.6533,186.03,185.93,149.1459]
[1734873695218,1.6533,186.03,185.96,155.7]
[1734873695516,20.0,186.07,185.96,155.7]
[1734873695693,2.66104549,186.08,185.96,155.7]
[1734873697213,23.776884,186.07,185.96,155.7]
[1734873699189,23.776884,186.07,185.97,149.143]
[1734873699391,1.651,186.12,186.0,135.7]
[1734873701615,23.776884,186.1,186.01,13.4401]
[1734873701920,23.776884,186.11,186.01,13.4401]
[1734873704127,23.776884,186.11,186.01,149.1401]
[1734873704428,23.776884,186.11,186.02,6.2283]
[1734873705295,23.776884,186.09,186.01,135.7]
[1734873706315,23.776884,186.1,186.01,135.7]
[1734873706500,23.776884,186.08,186.01,135.7]
[1734873711813,1.00770893,186.07,185.98,143.5183]
[1734873712022,23.776884,186.06,185.98,137.29]
[1734873712687,23.776884,186.06,185.98,135.7]
[1734873712889,23.776884,186.04,185.98,135.7]
[1734873713089,23.776884,186.04,185.94,141.9283]
[1734873715715,8.3684,186.09,185.94,141.9283]
[1734873715716,23.776884,186.02,185.94,141.9283]
[1734873716892,23.776884,186.02,185.94,135.7]
[1734873721607,1.651,186.09,185.97,20.0]
[1734873721818,1.00776438,186.08,185.97,20.0]
[1734873722539,2.65874291,186.09,185.97,155.7]
[1734873723233,1.651,186.09,185.97,169.1426]
[1734873723430,1.651,186.09,186.0,20.0]
[1734873723630,23.776884,186.08,186.0,20.0]
[1734873724305,23.776884,186.08,185.99,135.7]
[1734873724507,23.776884,186.06,185.99,135.7]
[1734873726737,23.776884,186.04,185.96,135.7]
[1734873726905,23.776884,186.02,185.96,135.7]
[1734873727106,23.776884,186.02,185.91,157.0524]
[1734873727307,23.776884,186.0,185.91,137.2712]
[1734873727612,23.776884,185.98,185.91,135.7]
[1734873728412,1.00828661,185.97,185.88,135.7]
[1734873728732,23.776884,185.96,185.88,135.7]
[1734873730343,23.776884,185.99,185.91,20.0]
[1734873731642,1.00823539,185.98,185.88,135.7]
[1734873731826,23.776884,185.97,185.88,135.7]
[1734873732644,1.6357,186.0,185.89,13.4488]
[1734873732832,1.6357,186.0,185.89,149.1488]
[1734873733040,1.5594,186.05,185.93,155.7]
[1734873733343,1.00796187,186.04,185.93,155.7]
[1734873734253,23.776884,186.03,185.93,155.7]
[1734873734454,23.776884,186.01,185.93,155.7]
[1734873734759,24.78494315,186.03,185.93,155.7]
[1734873740061,23.776884,186.03,185.93,155.7]
[1734873740240,23.776884,186.04,185.94,149.1451]
[1734873743543,23.776884,186.02,185.94,149.1451]
[1734873743865,23.776884,186.02,185.94,135.7]
[1734873745167,23.776884,186.02,185.91,13.4472]
[1734873745168,23.776884,186.0,185.91,135.7]
[1734873745366,23.776884,185.98,185.91,135.7]
[1734873746249,23.776884,186.01,185.91,135.7]
[1734873746546,23.776884,186.03,185.91,149.1468]
[1734873746756,24.78485732,186.04,185.91,149.1468]
[1734873747663,23.776884,186.04,185.94,20.0]
[1734873747851,20.0,186.04,185.94,155.7]
[1734873748169,1.5594,186.05,185.94,155.7]
[1734873749159,23.776884,186.03,185.94,155.7]
[1734873750973,1.00803245,186.02,185.94,155.7]
[1734873751153,23.776884,186.01,185.94,135.7]
[1734873751358,23.776884,185.99,185.94,135.7]
[1734873753749,23.776884,185.99,185.91,20.0]
[1734873754475,1.5594,186.05,185.91,155.7]
[1734873754645,1.5594,186.05,185.95,155.7]
[1734873755065,6.288,186.07,185.97,20.0]
[1734873755259,1.00772399,186.09,185.97,155.7]
[1734873756277,23.776884,186.08,185.99,20.0]
[1734873756573,23.776884,186.08,186.0,20.0]
[1734873756752,23.776884,186.09,186.0,20.0]
[1734873757578,23.776884,186.09,186.0,155.7]
[1734873759865,1.6604,186.1,186.0,155.7]
[1734873760374,1.00763305,186.09,186.0,155.7]
[1734873760679,1.6604,186.1,186.0,155.7]
[1734873761277,23.776884,186.09,186.0,155.7]
[1734873763578,1.00765536,186.15,186.01,156.7989]
[1734873763788,20.0,186.14,186.01,156.7989]
[1734873764082,1.00754677,186.13,186.01,156.7989]
[1734873765363,23.776884,186.12,186.01,156.7989]
[1734873767380,1.0074776,186.14,186.01,156.7989]
[1734873768694,23.776884,186.13,186.01,156.7989]
[1734873769893,24.78429237,186.14,186.01,156.7989]
[1734873770098,23.776884,186.14,186.01,156.7989]
[1734873770411,23.776884,186.14,186.04,20.0]
[1734873770697,2.60781545,186.17,186.06,155.7]
[1734873770866,1.00731545,186.17,186.06,155.7]
[1734873771065,1.00727442,186.2,186.07,7.6588]
[1734873771495,1.00713414,186.21,186.1,20.0]
[1734873771799,1.00701886,186.25,186.1,155.7]
[1734873772377,1.00701886,186.25,186.11,1.5619]
[1734873772576,1.00701886,186.25,186.15,155.7]
[1734873772884,1.00684904,186.26,186.15,155.7]
[1734873773292,23.776884,186.25,186.15,155.7]
[1734873773815,10.0,186.27,186.17,20.0]
[1734873774289,10.0,186.27,186.18,20.0]
[1734873775116,10.0,186.27,186.19,137.2619]
[1734873775400,23.776884,186.26,186.19,137.2619]
[1734873775905,10.0,186.27,186.2,6.0969]
[1734873777396,10.0,186.27,186.2,141.7969]
[1734873778797,23.776884,186.26,186.2,141.7969]
[1734873780900,23.776884,186.26,186.18,20.0]
[1734873780901,24.7835627,186.26,186.16,6.0256]
[1734873781101,24.7835627,186.26,186.16,141.7256]
[1734873781991,43.776884,186.22,186.11,141.7256]
[1734873782191,23.776884,186.2,186.11,141.7256]
[1734873793490,20.0,186.22,186.11,141.7256]
[1734873794412,1.00694493,186.24,186.14,155.7]
[1734873794713,23.776884,186.23,186.14,155.7]
[1734873795790,9.94666898,186.29,186.15,155.7]
[1734873796414,9.94666898,186.29,186.17,20.0]
[1734873796589,9.94666898,186.29,186.18,20.0]
[1734873797716,23.776884,186.28,186.18,20.0]
[1734873800118,23.776884,186.26,186.18,20.0]
[1734873800293,23.776884,186.26,186.18,155.7]
[1734873800493,23.776884,186.24,186.18,135.7]
[1734873804315,1.00690019,186.23,186.18,135.7]
[1734873804718,23.776884,186.22,186.18,135.7]
[1734873806117,90.46187787,186.18,186.16,137.2047]
[1734873812224,68.53010326,186.18,186.17,19.7136]
[1734873812529,136.19424718,186.21,186.2,20.0]
[1734873818326,0.49424718,186.21,186.2,150.2]
[1734873819845,50.91577792,186.27,186.21,13.4257]
[1734873820012,146.94772887,186.24,186.23,158.1972]
[1734873820211,122.86118223,186.24,186.23,158.1972]
[1734873820413,105.41548223,186.24,186.23,157.42449]
[1734873820618,105.41548223,186.24,186.23,156.72179]
[1734873820619,51.73618223,186.24,186.23,156.72179]
[1734873821125,45.41308223,186.24,186.23,156.72179]
[1734873821328,18.66438223,186.24,186.23,156.72179]
[1734873821629,7.95155723,186.26,186.24,0.12549]
[1734873821822,7.95155723,186.26,186.24,13.54899]
[1734873822135,2.60585723,186.26,186.24,13.54899]
[1734873822327,5.723e-05,186.26,186.24,13.54899]
[1734873822937,5.723e-05,186.26,186.24,143.6235]
[1734873827042,5.723e-05,186.26,186.25,0.12549]
[1734873827416,50.91577792,186.27,186.26,130.19994277]
[1734873827639,47.51007792,186.27,186.26,130.19994277]
[1734873827835,44.71967792,186.27,186.26,130.32543277]
[1734873828142,19.88097792,186.27,186.26,130.32543277]
[1734873828320,8.92757792,186.27,186.26,130.32543277]
[1734873828635,1e-08,186.27,186.26,130.32543277]
[1734873829739,129.94645661,186.29,186.27,13.54679]
[1734873829930,122.95315661,186.29,186.27,13.54679]
[1734873830124,116.70885661,186.29,186.27,13.54679]
[1734873830333,116.70885661,186.29,186.27,13.4213]
[1734873833344,116.70885661,186.29,186.27,143.62124277]
[1734873840753,116.70885661,186.29,186.27,130.19994277]
[1734873842951,116.70885661,186.29,186.24,130.19994277]
[1734873843140,23.776884,186.28,186.24,130.19994277]
[1734873843955,23.776884,186.28,186.22,130.19994277]
[1734873844135,23.776884,186.28,186.18,130.19994277]
[1734873847136,23.776884,186.28,186.19,13.4271]
[1734873847744,116.70885661,186.29,186.22,20.0]
[1734873848059,116.70885661,186.29,186.22,19.674798]
[1734873848459,116.70885661,186.29,186.22,149.87474077]
[1734873849262,23.776884,186.28,186.22,149.87474077]
[1734873850256,116.70885661,186.29,186.27,20.0]
[1734873850562,8.1913,186.35,186.27,150.19994277]
[1734873851452,1.5568,186.35,186.27,150.19994277]
[1734873851651,1.5568,186.35,186.27,163.62074277]
[1734873852151,1.5568,186.35,186.27,169.80994277]
[1734873852856,6.1892,186.46,186.31,20.0]
[1734873853063,2.56258098,186.45,186.31,20.0]
[1734873853645,20.0,186.43,186.32,20.0]
[1734873853849,2.56265669,186.42,186.32,20.0]
[1734873854360,1.5568,186.42,186.32,20.0]
[1734873854757,1.5568,186.42,186.34,20.0]
[1734873855340,1.5568,186.42,186.31,143.61774277]
[1734873855566,23.776884,186.41,186.34,20.0]
[1734873857469,23.776884,186.41,186.34,150.19994277]
[1734873859456,1.5568,186.42,186.35,143.61554277]
[1734873859662,1.5568,186.42,186.38,20.0]
[1734873860071,1.5568,186.42,186.38,150.19994277]
[1734873860663,2.2225441,186.47,186.39,13.4127]
[1734873860868,2.2225441,186.47,186.39,143.61264277]
[1734873862269,23.776884,186.46,186.39,143.61264277]
[1734873863051,23.776884,186.46,186.39,173.61264277]
[1734873863772,2.2225441,186.47,186.39,173.61264277]
[1734873864570,2.2225441,186.47,186.39,143.61264277]
[1734873864949,2.2225441,186.47,186.42,150.19994277]
[1734873865579,0.6922441,186.47,186.42,150.19994277]
[1734873867449,23.776884,186.46,186.42,150.19994277]
[1734873871076,0.6922441,186.47,186.42,150.19994277]
[1734873874377,0.6922441,186.47,186.43,13.4098]
[1734873874676,0.6922441,186.47,186.46,150.19994277]
[1734873879459,0.6922441,186.47,186.46,130.19994277]
[1734873880460,0.6922441,186.47,186.43,130.19994277]
[1734873880872,23.776884,186.46,186.43,130.19994277]
[1734873881863,0.6922441,186.47,186.43,130.19994277]
[1734873882067,0.6922441,186.47,186.46,20.0]
[1734873882764,0.6922441,186.47,186.46,150.19994277]
[1734873884686,0.6922441,186.47,186.46,156.41694277]
[1734873884882,0.6922441,186.47,186.46,162.68114277]
[1734873889491,0.6922441,186.47,186.46,156.41694277]
[1734873889998,0.6922441,186.47,186.42,6.2642]
[1734873889999,0.6922441,186.47,186.42,149.87444277]
[1734873890171,0.6922441,186.47,186.22,102.89645217]
[1734873890172,2.3270441,186.47,186.39,13.4124]
[1734873890488,2.3270441,186.47,186.41,137.42206777]
[1734873891797,2.3270441,186.47,186.41,150.83286777]
[1734873891966,2.3270441,186.47,186.44,20.0]
[1734873892172,0.6922441,186.47,186.44,150.19994277]
[1734873897012,0.6922441,186.47,186.41,137.42206777]
[1734873897382,23.776884,186.46,186.41,137.42206777]
[1734873897682,23.776884,186.46,186.41,130.19994277]
[1734873900962,23.776884,186.46,186.37,130.19994277]
[1734873901139,23.776884,186.44,186.37,130.19994277]
[1734873901460,1.6499,186.45,186.37,143.61344277]
[1734873901648,23.776884,186.46,186.38,0.12549]
[1734873901823,0.6922441,186.47,186.37,143.61344277]
[1734873902158,23.776884,186.46,186.37,143.61344277]
[1734873902354,23.776884,186.46,186.4,20.0]
[1734873903026,0.6922441,186.47,186.4,20.0]
[1734873903760,0.6922441,186.47,186.4,150.19994277]
[1734873904143,0.6922441,186.47,186.41,143.61114277]
[1734873914673,0.6922441,186.47,186.43,143.60974277]
[1734873916300,0.6922441,186.47,186.43,13.4098]
[1734873916592,0.6922441,186.47,186.42,130.19994277]
[1734873917595,0.6922441,186.47,186.4,163.61164277]
[1734873917978,0.6922441,186.47,186.42,13.4105]
[1734873921761,0.6922441,186.47,186.45,0.12549]
[1734873922299,0.6922441,186.47,186.45,130.32543277]
[1734873922906,0.6922441,186.47,186.45,130.19994277]
[1734873923125,0.6922441,186.47,186.44,163.60904277]
[1734873925622,0.6922441,186.47,186.46,13.4077]
[1734873927522,4.41e-05,186.47,186.46,143.73313277]
[1734873930601,1.5401,186.58,186.51,150.19989867]
[1734873934520,1.5401,186.64,186.55,150.19989867]
[1734873935826,23.776884,186.63,186.55,150.19989867]
[1734873937124,1.5401,186.64,186.56,143.60039867]
[1734873938603,1.5401,186.64,186.56,13.4005]
[1734873939315,23.776884,186.63,186.56,13.4005]
[1734873940015,23.776884,186.63,186.51,130.19989867]
[1734873940323,23.776884,186.59,186.5,143.60449867]
[1734873940532,23.776884,186.59,186.5,130.19989867]
[1734873946231,1.5027,186.6,186.5,143.60459867]
[1734873946433,20.0,186.59,186.5,143.60459867]
[1734873947939,1.5027,186.6,186.5,143.60459867]
[1734873948239,20.0,186.59,186.5,143.60459867]
[1734873949249,23.776884,186.58,186.5,143.60459867]
[1734873950236,23.776884,186.58,186.47,143.60679867]
[1734873951142,1.5027,186.57,186.47,143.60679867]
[1734873951335,23.776884,186.56,186.47,143.60679867]
[1734873953442,1.5027,186.57,186.47,143.60679867]
[1734873954320,1.5027,186.57,186.48,0.12549]
[1734873954747,1.5027,186.57,186.5,150.19989867]
[1734873955116,1.5027,186.57,186.5,163.60419867]
[1734873960761,1.5027,186.57,186.5,143.60419867]
[1734873963662,1.5027,186.57,186.52,13.4033]
[1734873964038,1.5027,186.57,186.52,143.60319867]
[1734873964454,1.5027,186.57,186.53,0.12549]
[1734873964651,1.6461,186.62,186.53,130.32538867]
[1734873965559,1.6461,186.62,186.54,13.4019]
[1734873967050,1.6461,186.62,186.56,13.4005]
[1734873967565,1.6461,186.62,186.56,143.60039867]
[1734873968264,1.6461,186.62,186.53,13.4026]
[1734873968456,23.776884,186.61,186.53,143.60249867]
[1734873971963,1.6461,186.62,186.53,143.60249867]
[1734873976666,1.6461,186.62,186.56,33.4002]
[1734873977045,1.6461,186.62,186.56,163.60009867]
[1734873977242,1.6461,186.62,186.57,150.32538867]
[1734873977462,2.2468441,186.66,186.59,20.0]
[1734873977665,2.2468441,186.66,186.59,150.19989867]
[1734873978359,2.2468441,186.66,186.6,13.3976]
[1734873978865,2.2468441,186.66,186.6,143.59749867]
[1734873986370,2.2468441,186.66,186.6,130.19989867]
[1734873987290,2.2468441,186.66,186.57,143.59939867]
[1734873990397,23.776884,186.65,186.57,143.59939867]
[1734873992294,23.776884,186.65,186.54,21.448371]
[1734873992295,7.6865,186.64,186.55,130.19989867]
[1734873993179,7.6865,186.64,186.54,143.60139867]
[1734873994096,7.6865,186.64,186.55,23.776884]
[1734873994398,7.6865,186.64,186.54,143.60139867]
[1734873994599,23.776884,186.63,186.52,130.19989867]
[1734873994778,2.63155008,186.62,186.48,137.16601236]
[1734873994980,1.6268,186.61,186.5,7.6865]
[1734873995207,1.6268,186.61,186.48,130.19989867]
[1734873995387,1.00475008,186.62,186.46,5.47528414]
[1734873995592,10.7163,186.63,186.4,6.2182837]
[1734873995593,1.6268,186.51,186.48,4.3931]
[1734873995788,2.63221061,186.51,186.37,143.61359867]
[1734873995992,2.63221061,186.51,186.39,30.0]
[1734873996286,2.63221061,186.51,186.37,130.19989867]
[1734873996287,6.0597,186.5,186.37,130.19989867]
[1734873996493,1.00560498,186.49,186.37,130.19989867]
[1734873997497,20.0,186.47,186.33,143.61619867]
[1734873997800,1.00570259,186.46,186.33,143.61619867]
[1734873998173,1.00570259,186.46,186.33,130.19989867]
[1734873998595,1.00570259,186.46,186.36,20.0]
[1734873998796,7.8041,186.45,186.36,20.0]
[1734873999102,1.5822,186.43,186.29,143.61949867]
[1734873999277,1.00601429,186.42,186.29,130.19989867]
[1734873999977,1.00588984,186.42,186.29,130.19989867]
[1734874000372,21.00588984,186.42,186.29,130.19989867]
[1734874000979,6.178,186.4,186.29,130.19989867]
[1734874001178,1.00608333,186.39,186.29,130.19989867]
[1734874001484,1.00608333,186.39,186.24,143.62289867]
[1734874002292,1.5022,186.38,186.24,143.62289867]
[1734874002605,21.00616765,186.37,186.24,143.62289867]
[1734874003186,20.0,186.37,186.24,143.62289867]
[1734874003386,1.5022,186.38,186.24,143.62289867]
[1734874003800,1.5022,186.38,186.25,23.776884]
[1734874004707,1.5022,186.38,186.29,23.776884]
[1734874009609,1.5022,186.38,186.29,153.97678267]
[1734874009991,1.5022,186.38,186.33,153.97678267]
[1734874010186,1.5538,186.44,186.37,23.776884]
[1734874011515,1.5538,186.44,186.37,37.190384]
[1734874011701,8.0219,186.49,186.41,153.97678267]
[1734874012100,8.0219,186.49,186.45,23.776884]
[1734874013028,1.5538,186.49,186.45,23.776884]
[1734874013216,1.5538,186.49,186.45,37.185184]
[1734874014414,8.0219,186.54,186.45,167.38508267]
[1734874015211,1.5538,186.54,186.49,153.97678267]
[1734874015403,1.5538,186.54,186.5,23.776884]
[1734874015801,1.5538,186.54,186.45,143.60819867]
[1734874016005,1.5538,186.54,186.46,23.776884]